[Event "ISR-chT 2019"]
[Site "Israel"]
[Date "2019.01.04"]
[Round "1"]
[White "Deutsch, Eyal"]
[Black "Gershon, Alik"]
[Result "0-1"]
[ECO "A47"]
[WhiteElo "2350"]
[BlackElo "2431"]
[Annotator "NA"]
[PlyCount "98"]
[EventDate "2019.01.04"]
[EventType "team-tourn"]
[EventCountry "ISR"]
[SourceTitle "playchess.com"]
[Source "ChessBase"]
[SourceQuality "1"]
[TimeControl "40/5400+30:1800+30"]

1. d4 {[%emt 0:00:00]} Nf6 {[%emt 0:00:00]} 2. Nf3 {[%emt 0:00:00]} e6 {[%emt 0:00:00]} 3. e3 {[%emt 0:00:08]} b6 {[%emt 0:00:36]} 4. b3 {[%emt 0:00:06]} Bb7 {[%emt 0:00:19]} 5. Bb2 {[%emt 0:00:06]} Be7 {[%emt 0:07:03]} 6. Bd3 {[%emt 0:04:10]} Ne4 {[%emt 0:07:56]} 7. O-O {[%emt 0:00:29]} f5 {[%emt 0:00:22]} 8. Nfd2 {[%emt 0:01:34]} d5 {[%emt 0:06:42]} 9. f3 {[%emt 0:04:32]} Nd6 {[%emt 0:00:24]} 10. c4 {[%emt 0:00:59]} Nd7 {[%emt 0:00:42]} 11. Nc3 {[%emt 0:00:08]} c5 {[%emt 0:07:14]} 12. cxd5 exd5 {[%emt 0:00:12]} 13. Ne2 {[%emt 0:03:26]} O-O {[%emt 0:13:36]} 14. Nf4 {[%emt 0:11:40]} Bg5 $15 {[%emt 0:01:34]} 15. Re1 {[%emt 0:10:44]} Qe7 {[%emt 0:02:26]} 16. dxc5 {[%emt 0:07:23]} bxc5 {[%emt 0:00:41]} 17. Nf1 {[%emt 0:05:06]} Rac8 {[%emt 0:05:26]} 18. Rc1 {[%emt 0:00:34]} Qf7 {[%emt 0:04:34]} 19. Qd2 {[%emt 0:01:09]} Rfd8 {[%emt 0:03:01]} 20. Bb1 {[%emt 0:07:11]} d4 {[%emt 0:15:12]} 21. Nh3 {[%emt 0:00:43]} Bf6 {[%emt 0:13:32]} 22. exd4 {[%emt 0:01:14]} Nb5 {[%emt 0:00:34]} 23. dxc5 {[%emt 0:05:58]} Nxc5 {[%emt 0:00:06]} 24. Qf2 {[%emt 0:00:34]} Nd4 {[%emt 0:01:04]} 25. Rcd1 {[%emt 0:01:38]} Nce6 {[%emt 0:00:23]} 26. Ng3 {[%emt 0:04:06]} g6 {[%emt 0:03:00]} 27. Bd3 {[%emt 0:03:26]} Bd5 {[%emt 0:01:06]} 28. Ba1 {[%emt 0:05:26]} Qg7 {[%emt 0:01:02]} 29. Ne2 {[%emt 0:01:34]} Nc2 {[%emt 0:03:38]} 30. Bxf6 {[%emt 0:00:53]} Qxf6 {[%emt 0:00:02]} 31. Bxc2 {[%emt 0:00:42]} Rxc2 {[%emt 0:00:02]} 32. Qe3 {[%emt 0:02:55]} a5 {[%emt 0:02:00]} 33. Nd4 {[%emt 0:03:25]} Nxd4 {[%emt 0:00:02]} 34. Rxd4 {[%emt 0:00:30]} Bf7 {[%emt 0:01:02]} 35. Rxd8+ {[%emt 0:01:23]} Qxd8 {[%emt 0:00:01]} 36. Re2 {[%emt 0:03:08]} Qd1+ {[%emt 0:01:20]} 37. Re1 {[%emt 0:00:12]} Qd2 {[%emt 0:00:28]} 38. Qxd2 {[%emt 0:00:22]} Rxd2 {[%emt 0:00:01]} 39. Ra1 {[%emt 0:02:15]} Kg7 {[%emt 0:00:02]} 40. Nf2 {[%emt 0:00:34]} Kf6 {[%emt 0:00:16]} 41. Nd1 {[%emt 0:34:58]} Ke5 {[%emt 0:03:34]} 42. Nc3 {[%emt 0:00:00]} Kd4 {[%emt 0:01:19]} 43. Na4 {[%emt 0:00:00]} g5 {[%emt 0:03:03]} 44. h3 {[%emt 0:00:00]} h5 {[%emt 0:03:33]} 45. Rc1 {[%emt 0:00:00]} Rxa2 {[%emt 0:04:40]} 46. Rc5 {[%emt 0:00:00]} Rxa4 {[%emt 0:00:55]} 47. Rxf5 {[%emt 0:00:00]} Ra1+ {[%emt 0:00:06]} 48. Kf2 {[%emt 0:00:00]} Bxb3 {[%emt 0:00:16]} 49. Rxg5 {[%emt 0:00:00]} a4 {[%emt 0:00:33]} 0-1

[Event "ISR-chT 2019"]
[Site "Israel"]
[Date "2019.01.04"]
[Round "1"]
[White "Parkhov, Yair"]
[Black "Huzman, Alexander"]
[Result "1/2-1/2"]
[ECO "E11"]
[WhiteElo "2336"]
[BlackElo "2580"]
[Annotator "ChessBase"]
[PlyCount "110"]
[EventDate "2019.01.04"]
[EventType "team-tourn"]
[EventCountry "ISR"]
[SourceTitle "playchess.com"]
[Source "ChessBase"]
[SourceQuality "1"]
[TimeControl "40/5400+30:1800+30"]

1. d4 {[%emt 0:00:00]} e6 {[%emt 0:00:00]} 2. Nf3 {[%emt 0:01:03]} Nf6 {[%emt 0:02:25]} 3. c4 {[%emt 0:00:38]} Bb4+ {[%emt 0:02:47]} 4. Bd2 {[%emt 0:00:13]} Qe7 {[%emt 0:00:04]} 5. g3 {[%emt 0:03:33]} Nc6 {[%emt 0:01:01]} 6. a3 {[%emt 0:09:19]} Bxd2+ {[%emt 0:02:27]} 7. Qxd2 {[%emt 0:00:15]} d5 {[%emt 0:06:37]} 8. Bg2 {[%emt 0:07:55]} dxc4 {[%emt 0:10:32]} 9. Qc3 {[%emt 0:03:41]} O-O {[%emt 0:04:19]} 10. Nbd2 {[%emt 0:04:06]} Nd5 {[%emt 0:05:26]} 11. Qxc4 {[%emt 0:01:50]} Rd8 {[%emt 0:01:25]} 12. e4 {[%emt 0:16:11]} Nb6 {[%emt 0:01:27]} 13. Qc3 {[%emt 0:00:08]} e5 {[%emt 0:09:31]} 14. d5 {[%emt 0:01:01]} Nd4 {[%emt 0:01:44]} 15. Nxd4 {[%emt 0:09:51]} exd4 {[%emt 0:01:19]} 16. Qxd4 {[%emt 0:00:08]} Nxd5 {[%emt 0:00:31]} 17. Qc4 {[%emt 0:00:41]} c5 {[%emt 0:05:01]} 18. Qe2 {[%emt 0:01:02]} Nc7 {[%emt 0:01:02]} 19. O-O {[%emt 0:04:53]} b6 {[%emt 0:03:08]} 20. Rfd1 {[%emt 0:02:39]} Ba6 {[%emt 0:03:35]} 21. Qe3 {[%emt 0:06:57]} Qe5 {[%emt 0:12:54]} 22. b4 {[%emt 0:03:53]} Ne6 {[%emt 0:01:16]} 23. Nf3 {[%emt 0:02:10]} Qb2 {[%emt 0:01:14]} 24. Rdb1 {[%emt 0:02:53]} Qe2 {[%emt 0:00:38]} 25. Qxe2 {[%emt 0:02:30]} Bxe2 {[%emt 0:00:19]} 26. bxc5 {[%emt 0:00:42]} Nxc5 {[%emt 0:01:20]} 27. Re1 {[%emt 0:01:53]} Bb5 {[%emt 0:04:27]} 28. Re3 {[%emt 0:05:19]} Rac8 {[%emt 0:02:16]} 29. Bf1 {[%emt 0:02:04]} Bc6 {[%emt 0:03:16]} 30. Rae1 {[%emt 0:00:05]} Rc7 {[%emt 0:04:00]} 31. Ne5 {[%emt 0:00:55]} Bb7 {[%emt 0:01:00]} 32. Bc4 {[%emt 0:00:40]} Re8 {[%emt 0:00:40]} 33. f4 {[%emt 0:00:52]} Kf8 {[%emt 0:00:18]} 34. Bd5 {[%emt 0:00:34]} Rd8 {[%emt 0:03:39]} 35. Bxb7 {[%emt 0:00:51]} Rxb7 {[%emt 0:01:15]} 36. Nf3 {[%emt 0:00:50]} Rbd7 {[%emt 0:00:33]} 37. e5 {[%emt 0:01:53]} Rd3 {[%emt 0:01:46]} 38. f5 {[%emt 0:00:51]} Ke7 {[%emt 0:01:26]} 39. Kf1 {[%emt 0:01:28]} h6 {[%emt 0:01:03]} 40. Nh4 {[%emt 0:01:39]} Rxe3 {[%emt 0:01:16]} 41. Rxe3 {[%emt 0:30:09]} Rd1+ {[%emt 0:05:01]} 42. Ke2 {[%emt 0:00:00]} Rc1 {[%emt 0:00:22]} 43. Ng2 {[%emt 0:00:00]} Rc2+ {[%emt 0:02:53]} 44. Kf3 {[%emt 0:00:00]} g5 {[%emt 0:01:56]} 45. fxg6 {[%emt 0:00:00]} fxg6 {[%emt 0:00:38]} 46. Nf4 {[%emt 0:00:00]} g5 {[%emt 0:01:59]} 47. Nd5+ {[%emt 0:00:00]} Kf7 {[%emt 0:00:13]} 48. Nc7 {[%emt 0:00:00]} Ne6 {[%emt 0:01:15]} 49. Nb5 {[%emt 0:00:00]} Kg6 {[%emt 0:06:00]} 50. Ke4 {[%emt 0:00:00]} Rd2 {[%emt 0:02:54]} 51. Rf3 {[%emt 0:01:03]} Nc5+ {[%emt 0:02:03]} 52. Ke3 {[%emt 0:00:06]} Rd5 {[%emt 0:00:28]} 53. Nxa7 {[%emt 0:00:41]} Rxe5+ {[%emt 0:00:04]} 54. Kd4 {[%emt 0:00:20]} Re2 {[%emt 0:01:05]} 55. Nc8 {[%emt 0:01:09]} Nd7 {[%emt 0:07:30]} 1/2-1/2

[Event "ISR-chT 2019"]
[Site "Israel"]
[Date "2019.01.04"]
[Round "1"]
[White "Lurie, Michael"]
[Black "Haimovich, Tal"]
[Result "1/2-1/2"]
[ECO "A06"]
[WhiteElo "2331"]
[BlackElo "2408"]
[Annotator "NA"]
[PlyCount "122"]
[EventDate "2019.01.04"]
[EventType "team-tourn"]
[EventCountry "ISR"]
[SourceTitle "playchess.com"]
[Source "ChessBase"]
[SourceQuality "1"]
[TimeControl "40/5400+30:1800+30"]

1. Nf3 {[%emt 0:00:00]} d5 {[%emt 0:00:14]} 2. b3 {[%emt 0:00:00]} c5 {[%emt 0:01:42]} 3. e3 {[%emt 0:00:11]} Nf6 {[%emt 0:01:30]} 4. Bb2 {[%emt 0:00:15]} Nc6 {[%emt 0:03:50]} 5. Bb5 {[%emt 0:01:02]} Bd7 {[%emt 0:00:08]} 6. O-O {[%emt 0:00:34]} e6 {[%emt 0:01:36]} 7. d3 {[%emt 0:01:58]} Be7 {[%emt 0:03:20]} 8. Nbd2 {[%emt 0:03:28]} O-O {[%emt 0:00:38]} 9. Bxc6 {[%emt 0:08:01]} Bxc6 {[%emt 0:01:04]} 10. Ne5 {[%emt 0:00:08]} Be8 {[%emt 0:06:37]} 11. f4 {[%emt 0:15:53]} Rc8 $11 {[%emt 0:13:39]} 12. a4 {[%emt 1:04:30]} Nd7 {[%emt 0:15:52]} 13. Qg4 {[%emt 0:00:00]} Nxe5 {[%emt 0:06:19]} 14. Bxe5 {[%emt 0:00:00]} f6 {[%emt 0:00:59]} 15. Bb2 {[%emt 0:00:00]} Rc6 {[%emt 0:00:40]} 16. Qe2 {[%emt 0:00:00]} Bf7 {[%emt 0:03:40]} 17. Kh1 {[%emt 0:00:00]} Qd7 {[%emt 0:01:34]} 18. e4 {[%emt 0:00:00]} Bd8 {[%emt 0:04:33]} 19. e5 {[%emt 0:00:00]} f5 {[%emt 0:04:17]} 20. d4 {[%emt 0:00:00]} cxd4 {[%emt 0:01:39]} 21. Nf3 {[%emt 0:00:00]} Bh5 {[%emt 0:00:37]} 22. Bxd4 {[%emt 0:00:00]} Bb6 {[%emt 0:04:49]} 23. Bxb6 {[%emt 0:00:00]} axb6 {[%emt 0:02:10]} 24. Qd2 {[%emt 0:00:00]} Bxf3 {[%emt 0:00:25]} 25. Rxf3 {[%emt 0:00:00]} Qe7 {[%emt 0:00:49]} 26. h3 {[%emt 0:00:00]} Qc5 {[%emt 0:06:39]} 27. c3 {[%emt 0:00:00]} b5 {[%emt 0:00:48]} 28. axb5 {[%emt 0:00:00]} Qxb5 {[%emt 0:00:07]} 29. Ra4 {[%emt 0:00:00]} Rfc8 {[%emt 0:05:49]} 30. Rb4 {[%emt 0:00:00]} Qa6 {[%emt 0:00:30]} 31. Ra4 {[%emt 0:00:00]} Qb6 {[%emt 0:00:30]} 32. Rb4 {[%emt 0:00:00]} Qa7 {[%emt 0:00:30]} 33. c4 {[%emt 0:00:00]} dxc4 {[%emt 0:07:29]} 34. bxc4 {[%emt 0:00:00]} h6 {[%emt 0:01:57]} 35. Rg3 {[%emt 0:00:11]} b6 {[%emt 0:00:16]} 36. Qd4 {[%emt 0:00:50]} Qc7 {[%emt 0:00:27]} 37. Rgb3 {[%emt 0:02:59]} Rxc4 {[%emt 0:00:48]} 38. Qxb6 {[%emt 0:01:37]} Qxb6 {[%emt 0:00:33]} 39. Rxb6 {[%emt 0:00:07]} Rxf4 {[%emt 0:00:31]} 40. Rxe6 {[%emt 0:00:10]} Kf7 {[%emt 0:00:32]} 41. Rd6 {[%emt 0:30:45]} Rc7 {[%emt 0:02:29]} 42. Rb5 {[%emt 0:00:00]} Rf1+ {[%emt 0:04:25]} 43. Kh2 {[%emt 0:00:00]} f4 {[%emt 0:00:37]} 44. e6+ {[%emt 0:00:00]} Kf6 {[%emt 0:04:32]} 45. h4 {[%emt 0:00:00]} Rcc1 {[%emt 0:10:02]} 46. Kh3 {[%emt 0:00:00]} Rc3+ {[%emt 0:00:31]} 47. Kh2 {[%emt 0:00:00]} Rc7 {[%emt 0:06:41]} 48. Ra6 {[%emt 0:00:00]} Re7 {[%emt 0:00:40]} 49. Kh3 {[%emt 0:00:00]} g6 {[%emt 0:01:17]} 50. Rb8 {[%emt 0:04:28]} h5 {[%emt 0:01:52]} 51. Kh2 {[%emt 0:02:09]} Rxe6 {[%emt 0:02:17]} 52. Rxe6+ {[%emt 0:00:13]} Kxe6 {[%emt 0:00:02]} 53. Rb6+ {[%emt 0:00:10]} Kf5 {[%emt 0:00:41]} 54. Rb5+ {[%emt 0:00:07]} Kf6 {[%emt 0:00:13]} 55. Rb6+ {[%emt 0:00:05]} Kg7 {[%emt 0:00:05]} 56. Rb7+ {[%emt 0:00:03]} Kf8 {[%emt 0:01:15]} 57. Rb6 {[%emt 0:00:26]} Kf7 {[%emt 0:00:42]} 58. Rb7+ {[%emt 0:00:06]} Ke6 {[%emt 0:00:08]} 59. Rb6+ {[%emt 0:00:05]} Kf5 {[%emt 0:00:32]} 60. Rb5+ {[%emt 0:00:08]} Ke6 {[%emt 0:00:57]} 61. Rb6+ {[%emt 0:00:07]} Kf5 {[%emt 0:00:29]} 1/2-1/2

[Event "ISR-chT 2019"]
[Site "Israel"]
[Date "2019.01.04"]
[Round "1"]
[White "Kundin, Alexander"]
[Black "Vydeslaver, Alik"]
[Result "1/2-1/2"]
[ECO "B01"]
[WhiteElo "2311"]
[BlackElo "2386"]
[Annotator "NA"]
[PlyCount "46"]
[EventDate "2019.01.04"]
[EventType "team-tourn"]
[EventCountry "ISR"]
[SourceTitle "playchess.com"]
[Source "ChessBase"]
[SourceQuality "1"]
[TimeControl "40/5400+30:1800+30"]

1. e4 {[%emt 0:00:00]} d5 {[%emt 0:01:04]} 2. exd5 {[%emt 0:00:00]} Qxd5 {[%emt 0:00:03]} 3. Nc3 {[%emt 0:00:00]} Qa5 {[%emt 0:00:03]} 4. d4 {[%emt 0:00:00]} Nf6 {[%emt 0:00:04]} 5. Nf3 {[%emt 0:00:00]} Bf5 {[%emt 0:00:21]} 6. Bc4 {[%emt 0:01:25]} e6 {[%emt 0:00:29]} 7. Bd2 $11 {[%emt 0:00:27] LiveBook: 219 Games} c6 {[%emt 0:05:42]} 8. Qe2 {[%emt 0:00:48]} Bb4 {[%emt 0:00:22]} 9. O-O-O {[%emt 0:02:12]} Nbd7 {[%emt 0:00:08]} 10. Ne5 Nxe5 {[%emt 0:17:17]} 11. dxe5 {[%emt 0:05:03]} Nd5 12. Bxd5 {[%emt 0:46:49]} cxd5 {[%emt 0:07:27]} 13. Qb5+ {[%emt 0:00:54]} Qxb5 {[%emt 0:00:17]} 14. Nxb5 {[%emt 0:00:02]} Rc8 {[%emt 0:00:08]} 15. Nd4 {[%emt 0:06:39]} Bc5 {[%emt 0:14:03]} 16. Nxf5 {[%emt 0:01:01]} exf5 {[%emt 0:00:03]} 17. f3 {[%emt 0:05:24]} Ke7 {[%emt 0:04:57]} 18. Bc3 {[%emt 0:00:05]} Ke6 {[%emt 0:00:04]} 19. Rhe1 {[%emt 0:01:18]} Rhd8 {[%emt 0:03:20]} 20. Bd4 {[%emt 0:03:24]} Bxd4 {[%emt 0:05:26]} 21. Rxd4 {[%emt 0:00:02]} Rc4 {[%emt 0:00:08]} 22. c3 {[%emt 0:02:01]} Rdc8 {[%emt 0:01:43]} 23. Kd2 {[%emt 0:00:14]} R8c6 {[%emt 0:03:48]} 1/2-1/2

[Event "ISR-chT 2019"]
[Site "Israel"]
[Date "2019.01.04"]
[Round "1"]
[White "Aharon, Ofir"]
[Black "Oratovsky, Michael"]
[Result "1/2-1/2"]
[ECO "C41"]
[WhiteElo "2310"]
[BlackElo "2462"]
[Annotator "ChessBase"]
[PlyCount "95"]
[EventDate "2019.01.04"]
[EventType "team-tourn"]
[EventCountry "ISR"]
[SourceTitle "playchess.com"]
[Source "ChessBase"]
[SourceQuality "1"]
[TimeControl "40/5400+30:1800+30"]

1. e4 {[%emt 0:00:00]} d6 {[%emt 0:01:08]} 2. d4 {[%emt 0:00:00]} Nf6 {[%emt 0:00:07]} 3. Nc3 {[%emt 0:00:00]} e5 {[%emt 0:00:14]} 4. Nf3 {[%emt 0:00:01]} Nbd7 {[%emt 0:00:06]} 5. Bc4 {[%emt 0:00:06]} Be7 {[%emt 0:00:07]} 6. O-O {[%emt 0:00:26]} O-O {[%emt 0:00:06]} 7. Re1 {[%emt 0:01:08]} c6 {[%emt 0:11:59]} 8. a4 {[%emt 0:00:05]} a5 {[%emt 0:00:24]} 9. h3 {[%emt 0:00:56]} Nb6 {[%emt 0:00:06]} 10. Ba2 {[%emt 0:02:20]} Nfd7 {[%emt 0:00:19]} 11. Be3 {[%emt 0:01:01]} exd4 {[%emt 0:00:15]} 12. Nxd4 {[%emt 0:00:07]} Nc5 {[%emt 0:00:32]} 13. Qh5 {[%emt 0:10:46]} Nbxa4 {[%emt 0:06:20]} 14. Nxa4 Nxa4 {[%emt 0:00:08]} 15. Nf3 {[%emt 0:13:21]} b5 {[%emt 0:02:32]} 16. Ng5 {[%emt 0:05:27]} Bxg5 {[%emt 0:00:30]} 17. Bxg5 {[%emt 0:00:05]} Qc7 {[%emt 0:04:02]} 18. Re3 {[%emt 0:02:13]} Kh8 {[%emt 0:01:05]} 19. b3 {[%emt 0:27:02]} Nc5 {[%emt 0:18:05]} 20. Rd1 {[%emt 0:00:33]} Be6 {[%emt 0:29:53]} 21. Bf4 {[%emt 0:04:11]} Rad8 {[%emt 0:01:06]} 22. c4 {[%emt 0:03:38]} f6 {[%emt 0:07:52]} 23. Kh2 {[%emt 0:02:51]} Bf7 {[%emt 0:09:07]} 24. Qe2 {[%emt 0:00:08]} Ne6 {[%emt 0:03:50]} 25. Bg3 {[%emt 0:00:08]} c5 {[%emt 0:00:05]} 26. cxb5 {[%emt 0:05:48]} Nd4 {[%emt 0:00:04]} 27. Qb2 {[%emt 0:04:51]} Qb6 {[%emt 0:00:28]} 28. Qa3 {[%emt 0:03:00]} Nc2 {[%emt 0:01:21]} 29. Qa4 {[%emt 0:00:01]} Nxe3 {[%emt 0:01:10]} 30. fxe3 {[%emt 0:00:02]} Be8 {[%emt 0:00:42]} 31. Bb1 {[%emt 0:02:08]} Qxb5 {[%emt 0:00:57]} 32. Qa1 {[%emt 0:09:41]} Qxb3 {[%emt 0:00:30]} 33. Rxd6 {[%emt 0:00:33]} Rc8 {[%emt 0:00:44]} 34. e5 {[%emt 0:00:54]} Rc6 {[%emt 0:00:34]} 35. exf6 {[%emt 0:02:00]} gxf6 {[%emt 0:00:01]} 36. e4 {[%emt 0:01:42]} Qb6 {[%emt 0:00:52]} 37. Rxc6 {[%emt 0:00:45]} Qxc6 {[%emt 0:00:29]} 38. e5 {[%emt 0:00:01]} c4 {[%emt 0:01:10]} 39. exf6 {[%emt 0:00:15]} Kg8 {[%emt 0:00:00]} 40. Be5 {[%emt 0:01:11]} Qd5 {[%emt 0:00:25]} 41. Qc3 {[%emt 0:30:26]} Bg6 {[%emt 0:30:21]} 42. Qg3 {[%emt 0:00:00]} Kf7 {[%emt 0:00:00]} 43. Bc3 {[%emt 0:00:00]} Rc8 {[%emt 0:00:00]} 44. Bxg6+ {[%emt 0:00:00]} hxg6 {[%emt 0:00:00]} 45. Qh4 {[%emt 0:00:00]} Qd6+ {[%emt 0:00:00]} 46. Kh1 {[%emt 0:00:00]} Qd1+ {[%emt 0:00:00]} 47. Kh2 {[%emt 0:00:00]} Qd6+ {[%emt 0:00:44]} 48. Kh1 {[%emt 0:00:00]} 1/2-1/2

[Event "ISR-chT 2019"]
[Site "Israel"]
[Date "2019.01.04"]
[Round "1"]
[White "Aharonovich, Itamar"]
[Black "Sidorenko, Ilya"]
[Result "0-1"]
[ECO "E94"]
[WhiteElo "2299"]
[BlackElo "2395"]
[Annotator "NA"]
[PlyCount "83"]
[EventDate "2019.01.04"]
[EventType "team-tourn"]
[EventCountry "ISR"]
[SourceTitle "playchess.com"]
[Source "ChessBase"]
[SourceQuality "1"]
[TimeControl "40/5400+30:1800+30"]

1. d4 {[%emt 0:00:00]} Nf6 {[%emt 0:00:00]} 2. c4 {[%emt 0:00:00]} g6 {[%emt 0:00:00]} 3. Nc3 {[%emt 0:00:00]} Bg7 {[%emt 0:00:03]} 4. e4 {[%emt 0:00:36]} d6 {[%emt 0:00:06]} 5. Be2 {[%emt 0:00:21]} O-O {[%emt 0:00:12]} 6. Nf3 {[%emt 0:00:04]} Nbd7 {[%emt 0:00:13]} 7. O-O {[%emt 0:00:10]} e5 {[%emt 0:00:04]} 8. Be3 {[%emt 0:06:14]} Ng4 {[%emt 0:00:07]} 9. Bg5 {[%emt 0:00:09]} f6 {[%emt 0:00:08]} 10. Bc1 {[%emt 0:02:04]} c6 {[%emt 0:00:19]} 11. Qc2 {[%emt 0:00:38]} f5 12. Rd1 {[%emt 0:26:05]} exd4 13. Nxd4 {[%emt 0:00:44]} Nc5 {[%emt 0:42:55]} 14. Bxg4 {[%emt 0:04:39]} fxg4 {[%emt 0:00:13]} 15. Be3 {[%emt 0:02:14]} Qe7 {[%emt 0:07:48]} 16. b4 {[%emt 0:15:04]} Nd7 {[%emt 0:00:13]} 17. Rac1 {[%emt 0:02:16]} Ne5 {[%emt 0:02:47]} 18. Nce2 {[%emt 0:05:54]} Bd7 {[%emt 0:04:06]} 19. Nb3 {[%emt 0:06:32]} b6 {[%emt 0:05:36]} 20. a4 {[%emt 0:09:31]} c5 {[%emt 0:03:44]} 21. b5 {[%emt 0:01:14]} Be6 {[%emt 0:05:55]} 22. Nd2 {[%emt 0:00:37]} h5 {[%emt 0:26:31]} 23. Nf4 {[%emt 0:02:25]} h4 {[%emt 0:00:00]} 24. Nd3 {[%emt 0:00:45]} h3 {[%emt 0:00:00]} 25. Nxe5 {[%emt 0:00:27]} Bxe5 {[%emt 0:00:00]} 26. g3 {[%emt 0:00:18]} Qf6 {[%emt 0:00:00]} 27. Rf1 {[%emt 0:03:28]} a6 {[%emt 0:00:00]} 28. f4 {[%emt 0:03:21]} Bd4 {[%emt 0:00:00]} 29. Qd3 {[%emt 0:01:47]} axb5 {[%emt 0:00:00]} 30. axb5 {[%emt 0:00:30]} Ra2 {[%emt 0:00:00]} 31. Rf2 {[%emt 0:02:18]} Rfa8 {[%emt 0:00:00]} 32. f5 {[%emt 0:00:50]} R8a3 {[%emt 0:00:00]} 33. Bxd4 {[%emt 0:00:35]} cxd4 {[%emt 0:00:00]} 34. Qf1 {[%emt 0:01:34]} Bf7 {[%emt 0:00:00]} 35. Re1 {[%emt 0:01:47]} Re3 {[%emt 0:00:00]} 36. fxg6 {[%emt 0:01:52]} Qxg6 {[%emt 0:00:00]} 37. Rf6 {[%emt 0:00:38]} Rxd2 {[%emt 0:00:00]} 38. Rxg6+ {[%emt 0:00:09]} Bxg6 {[%emt 0:00:00]} 39. Rxe3 {[%emt 0:01:02]} dxe3 {[%emt 0:00:00]} 40. Qe1 {[%emt 0:00:19]} Rg2+ {[%emt 0:00:00]} 41. Kh1 {[%emt 0:30:36]} Bxe4 {[%emt 0:29:06]} 42. Qxe3 {[%emt 0:00:37]} 0-1

[Event "ISR-chT 2019"]
[Site "Israel"]
[Date "2019.01.04"]
[Round "1"]
[White "Afek, Yochanan"]
[Black "Mesropov, Konstantin"]
[Result "0-1"]
[ECO "C02"]
[WhiteElo "2244"]
[BlackElo "2431"]
[Annotator "NA"]
[PlyCount "126"]
[EventDate "2019.01.04"]
[EventType "team-tourn"]
[EventCountry "ISR"]
[SourceTitle "playchess.com"]
[Source "ChessBase"]
[SourceQuality "1"]
[TimeControl "40/5400+30:1800+30"]

1. e4 {[%emt 0:00:00]} e6 {[%emt 0:00:00]} 2. d4 {[%emt 0:00:00]} d5 {[%emt 0:00:00]} 3. e5 {[%emt 0:00:00]} c5 {[%emt 0:00:05]} 4. c3 {[%emt 0:00:00]} Nc6 {[%emt 0:00:05]} 5. Nf3 {[%emt 0:00:04]} Qb6 {[%emt 0:00:24]} 6. a3 {[%emt 0:00:21]} Nh6 {[%emt 0:00:28]} 7. Bd3 {[%emt 0:02:33]} cxd4 {[%emt 0:01:14]} 8. cxd4 $11 {[%emt 0:00:03] LiveBook: 45 Games} Bd7 {[%emt 0:00:55]} 9. Bc2 {[%emt 0:01:20]} Nf5 {[%emt 0:03:21]} 10. Bxf5 {[%emt 0:00:31]} exf5 {[%emt 0:00:03]} 11. Nc3 {[%emt 0:00:11]} Be6 {[%emt 0:00:09]} 12. b4 {[%emt 0:02:10]} h6 {[%emt 0:01:16]} 13. h4 {[%emt 0:00:12]} Rc8 {[%emt 0:08:20]} 14. Na4 {[%emt 0:09:55]} Qb5 {[%emt 0:04:06]} 15. Nc5 {[%emt 0:10:38]} a5 {[%emt 0:15:01]} 16. Qe2 {[%emt 0:21:46]} Qxe2+ {[%emt 0:04:34]} 17. Kxe2 {[%emt 0:00:11]} axb4 {[%emt 0:00:23]} 18. axb4 {[%emt 0:00:23]} b6 {[%emt 0:10:47]} 19. Nxe6 {[%emt 0:08:24]} fxe6 {[%emt 0:00:20]} 20. b5 {[%emt 0:00:04]} Na5 {[%emt 0:00:40]} 21. Bd2 {[%emt 0:00:06]} Nc4 {[%emt 0:04:17]} 22. Ra7 {[%emt 0:00:42]} Be7 {[%emt 0:04:59]} 23. h5 {[%emt 0:04:07]} Rf8 {[%emt 0:03:41]} 24. Rha1 {[%emt 0:12:11]} Rf7 {[%emt 0:04:24]} 25. Be1 {[%emt 0:05:40]} Bf8 {[%emt 0:05:56]} 26. Rxf7 {[%emt 0:00:43]} Kxf7 {[%emt 0:00:11]} 27. Ra7+ {[%emt 0:00:02]} Ke8 {[%emt 0:05:38]} 28. Nh4 {[%emt 0:00:48]} Na3 {[%emt 0:01:17]} 29. Rb7 {[%emt 0:06:23]} Nxb5 {[%emt 0:00:29]} 30. Nf3 {[%emt 0:03:00]} Rc6 {[%emt 0:06:20]} 31. Rb8+ {[%emt 0:02:19]} Kf7 {[%emt 0:00:02]} 32. Rb7+ {[%emt 0:00:02]} Ke8 {[%emt 0:08:17]} 33. Rb8+ {[%emt 0:00:05]} Kf7 {[%emt 0:00:05]} 34. Rb7+ {[%emt 0:00:05]} Be7 {[%emt 0:01:40]} 35. Bb4 {[%emt 0:03:43]} Rc7 {[%emt 0:00:20]} 36. Rxb6 {[%emt 0:00:27]} Bxb4 {[%emt 0:00:12]} 37. Rxb5 {[%emt 0:00:04]} Be7 {[%emt 0:00:11]} 38. Kd3 {[%emt 0:00:26]} Rc1 {[%emt 0:01:37]} 39. g3 {[%emt 0:04:45]} Rh1 {[%emt 0:01:30]} 40. Rb7 {[%emt 0:03:32]} Rxh5 {[%emt 0:02:35]} 41. Nh4 {[%emt 0:30:06]} f4 {[%emt 0:31:32]} 42. Ke2 {[%emt 0:00:00]} fxg3 {[%emt 0:00:00]} 43. fxg3 {[%emt 0:00:00]} Rg5 {[%emt 0:00:00]} 44. Kf3 {[%emt 0:00:00]} h5 {[%emt 0:00:00]} 45. Ng2 {[%emt 0:00:00]} Rg4 {[%emt 0:00:00]} 46. Nf4 {[%emt 0:00:00]} g5 {[%emt 0:00:00]} 47. Nxh5 {[%emt 0:00:00]} Rxd4 {[%emt 0:00:00]} 48. Nf6 {[%emt 0:00:00]} Rb4 {[%emt 0:00:00]} 49. Rd7 {[%emt 0:00:00]} Rb3+ {[%emt 0:00:00]} 50. Kf2 {[%emt 0:00:00]} Kf8 {[%emt 0:00:00]} 51. Ng4 {[%emt 0:00:00]} Ke8 {[%emt 0:00:00]} 52. Rc7 {[%emt 0:00:00]} Kd8 {[%emt 0:00:00]} 53. Rc2 {[%emt 0:00:00]} Kd7 {[%emt 0:00:00]} 54. Kg2 {[%emt 0:00:00]} Bd8 {[%emt 0:00:00]} 55. Ra2 {[%emt 0:00:54]} Bb6 {[%emt 0:00:32]} 56. Rc2 {[%emt 0:00:25]} Bd8 {[%emt 0:01:06]} 57. Ra2 {[%emt 0:00:05]} d4 {[%emt 0:00:14]} 58. Rd2 {[%emt 0:04:17]} Bb6 {[%emt 0:00:30]} 59. Nf6+ {[%emt 0:00:20]} Kc6 {[%emt 0:00:14]} 60. g4 {[%emt 0:00:46]} d3 {[%emt 0:03:26]} 61. Kf3 {[%emt 0:03:47]} Ba5 {[%emt 0:07:04]} 62. Rd1 d2+ {[%emt 0:00:00]} 63. Ke4 {[%emt 0:00:46]} Bb6 {[%emt 0:00:00]} 0-1